bitfinex-derivatives/quotes_SOLF0:USTF0_20250328
["timestamp","ask_amount","ask_price","bid_price","bid_amount"]
[1743165641530,0.05262506,130.81,130.79,7.70435399]
[1743165642027,0.05262506,130.81,130.79,0.05595399]
[1743165643340,0.05262506,130.81,130.8,7.6481]
[1743165644029,0.05262506,130.81,130.79,0.05595399]
[1743165644541,0.05262506,130.81,130.79,7.70455399]
[1743165644741,0.05262506,130.81,130.79,0.05595399]
[1743165645243,7.6481,130.8,130.79,0.05595399]
[1743165645536,0.05262506,130.81,130.8,7.6481]
[1743165645739,0.05262506,130.81,130.79,0.05595399]
[1743165646940,7.6481,130.8,130.79,0.05595399]
[1743165647349,0.05262506,130.81,130.79,0.05595399]
[1743165648341,7.70042506,130.81,130.79,0.05595399]
[1743165649631,7.6481,130.8,130.79,0.05595399]
[1743165653042,7.6507,130.76,130.73,84.20622531]
[1743165653244,7.6507,130.76,130.72,117.40622531]
[1743165653542,7.6502,130.77,130.74,7.6513]
[1743165653842,7.6502,130.77,130.72,117.40622531]
[1743165654239,0.04987541,130.76,130.73,0.05009657]
[1743165655144,0.04987541,130.76,130.75,7.651]
[1743165656542,7.6478,130.81,130.78,7.6489]
[1743165656745,24.74985881,130.86,130.75,57.94985881]
[1743165656941,33.2,130.86,130.77,24.74985881]
[1743165657138,7.6462,130.84,130.81,7.6473]
[1743165657739,7.69928944,130.84,130.81,7.69891252]
[1743165657946,0.05308944,130.84,130.81,0.05161252]
[1743165658940,7.6464,130.83,130.81,0.05161252]
[1743165659250,0.05308944,130.84,130.81,0.05161252]
[1743165659453,7.69928944,130.84,130.81,0.05161252]
[1743165659842,0.05308944,130.84,130.81,0.05161252]
[1743165661244,0.05308944,130.84,130.81,1.252e-05]
[1743165661245,7.6469,130.82,130.81,1.252e-05]
[1743165661438,37.4423,130.83,130.76,84.20622531]
[1743165661636,24.74985881,130.82,130.76,84.20622531]
[1743165661839,7.6499,130.77,130.76,84.20622531]
[1743165663152,0.05317148,130.78,130.76,84.20622531]
[1743165663549,7.6499,130.77,130.76,84.20622531]
[1743165664142,0.05317148,130.78,130.76,84.20622531]
[1743165664545,0.05317148,130.78,130.75,0.05769831]
[1743165664744,7.70277148,130.78,130.75,7.70849831]
[1743165665052,0.05317148,130.78,130.75,0.05769831]
[1743165666050,7.70277148,130.78,130.75,7.70859831]
[1743165666252,0.05317148,130.78,130.75,0.05769831]
[1743165666551,0.05317148,130.78,130.76,7.6505]
[1743165667143,0.05317148,130.78,130.77,7.6499]
[1743165669653,0.05317148,130.78,130.75,84.26392362]
[1743165670546,7.6505,130.76,130.75,84.26392362]
[1743165671354,7.6505,130.76,130.74,59.91448266]
[1743165671355,7.651,130.75,130.74,59.91448266]
[1743165671555,7.651,130.75,130.74,0.88658266]
[1743165671759,57.92985881,130.76,130.7,127.43265225]
[1743165672059,7.6534,130.71,130.7,127.43265225]
[1743165672554,7.70531479,130.72,130.7,127.43265225]
[1743165672755,0.05221479,130.72,130.7,127.43265225]
[1743165672954,0.05221479,130.72,130.7,127.4819924]
[1743165673353,7.6534,130.71,130.7,127.4819924]
[1743165673758,0.05221479,130.72,130.7,127.4819924]
[1743165673964,7.70531479,130.72,130.7,127.4819924]
[1743165674275,0.05221479,130.72,130.7,0.04934015]
[1743165674572,7.6534,130.71,130.7,0.04934015]
[1743165675474,40.88531479,130.72,130.7,0.04934015]
[1743165676158,7.6534,130.71,130.7,0.04934015]
[1743165676765,7.6534,130.71,130.7,4.015e-05]
[1743165677070,7.6567,130.66,130.63,11.6369]
[1743165677260,33.18,130.68,130.63,3.9791]
[1743165677461,33.18,130.68,130.6,4.0195]
[1743165677760,57.92985881,130.68,130.61,7.6589]
[1743165678157,57.92985881,130.68,130.6,11.6791]
[1743165678365,0.05492146,130.66,130.63,0.05614222]
[1743165678671,7.6575,130.64,130.63,0.05614222]
[1743165679174,40.8575,130.64,130.63,0.05614222]
[1743165679767,57.94985881,130.64,130.57,4.0298]
[1743165679966,57.94985881,130.64,130.58,7.6606]
[1743165680167,57.94985881,130.64,130.54,260.60580697]
[1743165680369,7.6606,130.59,130.54,260.60580697]
[1743165680672,33.2,130.59,130.54,260.60580697]
[1743165680873,7.6596,130.61,130.54,260.60580697]
[1743165681069,0.04860087,130.58,130.56,7.6618]
[1743165681261,0.04860087,130.58,130.54,260.60580697]
[1743165681466,0.04860087,130.58,130.54,4.0298]
[1743165681874,33.18,130.62,130.54,4.0298]
[1743165682062,33.18,130.62,130.55,57.94985881]
[1743165683073,0.05079196,130.6,130.57,0.05105363]
[1743165684170,252.52,130.74,130.57,24.80091244]
[1743165684371,33.2,130.67,130.57,24.74985881]
[1743165684576,7.6572,130.65,130.57,24.74985881]
[1743165684777,33.2,130.67,130.59,24.74985881]
[1743165684977,33.2,130.67,130.59,57.94985881]
[1743165685280,33.2,130.7,130.59,57.94985881]
[1743165685486,0.0526271,130.64,130.62,7.70765309]
[1743165685677,0.0526271,130.64,130.62,0.04925309]
[1743165685872,33.2,130.7,130.6,24.74985881]
[1743165686084,0.05019144,130.64,130.62,0.0488871]
[1743165686280,7.6581,130.63,130.59,33.2]
[1743165686586,0.05633382,130.63,130.6,0.05606349]
[1743165687477,7.6591,130.62,130.6,0.05606349]
[1743165687678,0.05633382,130.63,130.6,0.05606349]
[1743165687882,7.6592,130.61,130.6,0.05606349]
[1743165692887,0.05633382,130.63,130.6,0.05606349]
[1743165693485,7.6592,130.61,130.6,0.05606349]
[1743165706200,7.6589,130.62,130.6,0.05606349]
[1743165706503,0.05633382,130.63,130.6,0.05606349]
[1743165706702,7.6592,130.61,130.6,0.05606349]
[1743165708995,0.05633382,130.63,130.6,0.05606349]
[1743165710095,0.05633382,130.63,130.6,15.57478209]
[1743165710304,0.05633382,130.63,130.61,4.1004]
[1743165710594,7.6566,130.66,130.61,4.1004]
[1743165710902,42.4268687,130.68,130.61,4.1004]
[1743165711097,7.6571,130.65,130.61,4.1004]
[1743165711404,42.4268687,130.68,130.61,4.1004]
[1743165711595,42.4268687,130.68,130.63,7.6578]
[1743165711902,0.05742773,130.66,130.63,0.05529234]
[1743165713003,7.71402773,130.66,130.63,7.71299234]
[1743165713199,0.05742773,130.66,130.63,0.05529234]
[1743165713406,0.05742773,130.66,130.64,7.6574]
[1743165713603,0.05742773,130.66,130.63,0.05529234]
[1743165713802,7.71412773,130.66,130.63,7.71309234]
[1743165714703,0.05742773,130.66,130.64,7.6573]
[1743165714905,0.05742773,130.66,130.63,33.21529234]
[1743165715305,0.05742773,130.66,130.64,7.6575]
[1743165715696,0.05742773,130.66,130.65,7.6569]
[1743165715904,42.4268687,130.71,130.64,24.80444529]
[1743165716305,7.6542,130.7,130.66,7.6563]
[1743165716506,7.6542,130.7,130.64,24.80444529]
[1743165716700,42.4268687,130.71,130.63,33.16]
[1743165717006,7.6558,130.67,130.66,0.05223683]
[1743165717207,0.05595645,130.68,130.66,0.05223683]
[1743165717506,7.71135645,130.68,130.66,0.05223683]
[1743165717903,7.6557,130.67,130.66,0.05223683]
[1743165721798,0.05595645,130.68,130.66,0.05223683]
[1743165722205,0.05595645,130.68,130.67,7.6557]
[1743165722398,42.4268687,130.74,130.66,24.85668212]
[1743165722603,42.4268687,130.74,130.68,24.80444529]
[1743165722804,42.4268687,130.74,130.69,33.14]
[1743165723207,42.4268687,130.74,130.7,7.654]
[1743165723511,0.05196587,130.73,130.71,0.05388339]
[1743165724011,0.05196587,130.73,130.72,7.6527]
[1743165724209,42.4268687,130.74,130.71,0.05388339]
[1743165724424,22.9301687,130.74,130.71,0.05388339]
[1743165725208,0.0586725,130.74,130.71,0.05388339]
[1743165726614,0.0586725,130.74,130.72,24.80444529]
[1743165727011,0.0586725,130.74,130.73,33.12]
[1743165728604,33.12,130.81,130.73,33.12]
[1743165729010,7.6492,130.79,130.75,7.6505]
[1743165729204,37.3948,130.83,130.74,24.80444529]
[1743165729510,4.2748,130.83,130.74,24.80444529]
[1743165729713,7.649,130.79,130.75,7.6507]
[1743165730013,0.05395566,130.8,130.77,0.05611869]
[1743165731415,7.649,130.79,130.77,0.05611869]
[1743165731617,0.05395566,130.8,130.77,33.15611869]
[1743165732516,0.05395566,130.8,130.78,7.6489]
[1743165733414,0.05395566,130.8,130.78,24.80444529]
[1743165733917,0.05395566,130.8,130.78,32.45334529]
[1743165734617,33.1,130.87,130.78,24.80444529]
[1743165734818,41.1926,130.88,130.78,24.80444529]
[1743165735009,41.1926,130.88,130.8,15.45809573]
[1743165735310,7.6465,130.83,130.8,23.10589573]
[1743165736021,0.05777313,130.83,130.8,15.51573236]
[1743165736415,7.70447313,130.83,130.8,23.16343236]
[1743165737210,0.05777313,130.83,130.81,7.6475]
[1743165738105,7.70417313,130.83,130.8,23.16353236]
[1743165738316,0.05777313,130.83,130.8,15.51573236]
[1743165738717,7.647,130.82,130.8,15.51573236]
[1743165739217,0.05777313,130.83,130.8,15.51573236]
[1743165741022,0.05777313,130.83,130.81,7.6475]
[1743165741221,0.05777313,130.83,130.8,15.51573236]
[1743165741623,0.05777313,130.83,130.81,7.6472]
[1743165742722,0.05777313,130.83,130.82,7.6469]
[1743165743222,0.05777313,130.83,130.81,7.6473]
[1743165744019,0.05777313,130.83,130.8,15.51573236]
[1743165744219,0.05777313,130.83,130.8,0.05763663]
[1743165744425,0.05777313,130.83,130.8,15.51573236]
[1743165745025,7.70437313,130.83,130.8,15.51573236]
[1743165745221,7.70437313,130.83,130.8,23.16383236]
[1743165746223,7.647,130.82,130.8,0.05763663]
[1743165746426,0.05777313,130.83,130.8,0.05763663]
[1743165746723,7.6473,130.82,130.8,0.05763663]
[1743165746920,0.05777313,130.83,130.8,0.05763663]
[1743165747220,7.6469,130.82,130.8,0.05763663]
[1743165747625,0.05777313,130.83,130.8,0.05763663]
[1743165747827,7.6475,130.81,130.8,0.05763663]
[1743165748523,15.45809573,130.81,130.74,33.06]
[1743165748726,37.1253,130.8,130.72,15.45809573]
[1743165748920,15.45809573,130.79,130.71,252.26]
[1743165749115,15.45809573,130.77,130.71,252.26]
[1743165749316,15.45809573,130.77,130.7,33.06]
[1743165749531,7.653,130.72,130.7,33.06]
[1743165749924,7.70148332,130.72,130.7,0.05854971]
[1743165750728,0.04848332,130.72,130.7,0.05854971]
[1743165751027,0.04848332,130.72,130.7,15.51664544]
[1743165751224,0.04848332,130.72,130.71,7.6534]
[1743165751528,4.1627,130.78,130.7,15.51664544]
[1743165751732,4.1627,130.78,130.72,15.45809573]
[1743165751930,4.1627,130.78,130.72,48.51809573]
[1743165752725,0.05154602,130.76,130.74,15.51052185]
[1743165752930,0.05154602,130.76,130.75,7.651]
[1743165754027,0.05154602,130.76,130.74,23.16182185]
[1743165754230,0.05154602,130.76,130.74,15.51052185]
[1743165754637,7.6484,130.8,130.77,7.6494]
[1743165755138,7.6476,130.81,130.78,23.10679573]
[1743165755640,7.6476,130.81,130.78,23.16543403]
[1743165755836,7.69611613,130.81,130.78,23.16543403]
[1743165756435,0.04851613,130.81,130.79,7.6487]
[1743165756827,0.04851613,130.81,130.78,15.51673403]
[1743165757034,0.04851613,130.81,130.8,23.10619573]
[1743165757335,0.04851613,130.81,130.8,56.14619573]
[1743165758139,0.04851613,130.81,130.8,48.49809573]
[1743165758340,0.04851613,130.81,130.8,33.04]
[1743165758730,0.04851613,130.81,130.8,40.6881]
[1743165759042,8.5468,130.88,130.8,48.49809573]
[1743165759340,7.6447,130.86,130.82,15.45809573]
[1743165759731,4.2477,130.88,130.82,15.45809573]
[1743165760134,0.05566995,130.86,130.84,0.05135795]
[1743165761641,7.6452,130.85,130.84,0.05135795]
[1743165764536,7.6452,130.85,130.84,5.795e-05]
[1743165764742,27.31789573,130.85,130.76,48.47809573]
[1743165764944,15.45809573,130.83,130.75,15.45809573]
[1743165765140,33.02,130.82,130.75,15.45809573]
[1743165765654,7.6492,130.79,130.75,15.45809573]
[1743165765847,0.05073381,130.8,130.77,0.0483657]
[1743165766852,0.05073381,130.8,130.78,7.649]
[1743165767053,7.69883381,130.8,130.77,0.0483657]
[1743165767451,0.05073381,130.8,130.77,0.0483657]
[1743165767659,0.05073381,130.8,130.77,48.52646143]
[1743165768141,0.05073381,130.8,130.79,7.6487]
[1743165768753,0.05073381,130.8,130.78,7.6492]
[1743165768946,0.05073381,130.8,130.77,48.52646143]
[1743165769454,7.69923381,130.8,130.77,56.17606143]
[1743165770252,0.05073381,130.8,130.77,48.52646143]
[1743165770456,0.05073381,130.8,130.79,15.45809573]
[1743165770652,0.05073381,130.8,130.79,23.10679573]
[1743165773657,4.2198,130.85,130.81,7.6474]
[1743165774746,0.05513761,130.84,130.82,0.05401413]
[1743165775453,7.6464,130.83,130.82,0.05401413]
[1743165779557,7.6486,130.8,130.77,7.6495]
[1743165779761,7.6486,130.8,130.76,48.45809573]
[1743165780057,15.45809573,130.83,130.76,40.6502]
[1743165780559,7.6503,130.77,130.75,7.651]
[1743165780858,33.0,130.82,130.75,0.05568519]
[1743165781057,4.1379,130.84,130.76,23.10859573]
[1743165781058,0.05819101,130.77,130.76,23.10859573]
[1743165781260,4.1379,130.84,130.76,15.45809573]
[1743165781459,0.05144116,130.78,130.77,33.0]
[1743165781759,0.05560546,130.79,130.78,7.649]
[1743165781960,4.1379,130.84,130.77,33.0]
[1743165782260,0.054079,130.8,130.78,7.649]
[1743165782455,0.054079,130.8,130.78,15.45809573]
[1743165782759,4.1398,130.88,130.82,15.45809573]
[1743165782959,11.7835,130.88,130.84,7.6454]
[1743165783358,4.1398,130.88,130.82,15.45809573]
[1743165783861,0.04877642,130.86,130.84,0.05394922]
[1743165785157,0.04877642,130.86,130.85,7.6452]
[1743165785464,0.04877642,130.86,130.84,0.05394922]
[1743165786262,0.04877642,130.86,130.84,7.69944922]
[1743165786458,0.04877642,130.86,130.84,15.51204495]
[1743165786659,75.21817409,130.93,130.84,15.51204495]
[1743165786660,79.37337409,130.93,130.85,32.98]
[1743165786967,7.642,130.91,130.88,7.6432]
[1743165787362,79.37337409,130.93,130.87,7.6437]
[1743165787558,79.37337409,130.93,130.86,15.45809573]
[1743165787963,0.05826302,130.91,130.88,0.05001215]
[1743165788163,7.70026302,130.91,130.88,7.69341215]
[1743165788365,0.05826302,130.91,130.88,0.05001215]
[1743165788964,0.05826302,130.91,130.89,7.6426]
[1743165789669,0.05826302,130.91,130.9,7.6423]
[1743165790270,0.05826302,130.91,130.9,23.10039573]
[1743165790468,75.21817409,130.97,130.91,7.6414]
[1743165790672,75.21817409,130.97,130.9,15.45809573]
[1743165790969,7.6412,130.92,130.89,32.98]
[1743165791368,7.6417,130.91,130.89,32.98]
[1743165791564,7.69575353,130.91,130.89,33.03097326]
[1743165791770,0.05405353,130.91,130.89,0.05097326]
[1743165792872,7.69575353,130.91,130.89,0.05097326]
[1743165795576,0.05405353,130.91,130.89,0.05097326]
[1743165796678,7.69575353,130.91,130.89,0.05097326]
[1743165798277,0.05405353,130.91,130.89,7.69377326]
[1743165798580,0.05405353,130.91,130.89,0.05097326]
[1743165799076,7.6423,130.9,130.89,0.05097326]
[1743165802879,15.45809573,130.9,130.82,19.36129573]
[1743165803278,7.6458,130.84,130.82,27.00819573]
[1743165803680,15.45809573,130.88,130.81,252.26]
[1743165803980,15.45809573,130.88,130.82,0.05085948]
[1743165803981,0.0555266,130.84,130.82,0.05085948]
[1743165804279,7.6464,130.83,130.82,0.05085948]
[1743165807687,7.6464,130.83,130.82,5.948e-05]
[1743165810281,7.7015266,130.84,130.82,5.948e-05]
[1743165810483,0.0555266,130.84,130.82,5.948e-05]
[1743165811072,7.6464,130.83,130.82,5.948e-05]
[1743165812784,0.0555266,130.84,130.82,5.948e-05]
[1743165813182,7.7014266,130.84,130.82,7.64665948]
[1743165813779,7.6464,130.83,130.82,5.948e-05]
[1743165815280,0.0555266,130.84,130.82,5.948e-05]
[1743165816084,0.0555266,130.84,130.82,7.64695948]
[1743165816288,7.7016266,130.84,130.82,5.948e-05]
[1743165816683,0.0555266,130.84,130.82,5.948e-05]
[1743165817081,7.7015266,130.84,130.82,5.948e-05]
[1743165817483,0.0555266,130.84,130.82,5.948e-05]
[1743165817984,0.0555266,130.84,130.83,7.6464]
[1743165818183,15.45809573,130.92,130.83,15.45809573]
[1743165818485,48.37809573,130.92,130.84,7.6455]
[1743165818685,7.6449,130.86,130.83,15.45809573]
[1743165819286,7.6443,130.87,130.83,15.45809573]
[1743165819485,0.05803389,130.86,130.83,15.45809573]
[1743165819685,0.05803389,130.86,130.84,7.7005299]
[1743165820588,7.70273389,130.86,130.84,0.0550299]
[1743165820984,0.05803389,130.86,130.84,0.0550299]
[1743165821191,0.05803389,130.86,130.85,23.10329573]
[1743165821677,0.05803389,130.86,130.84,32.9750299]
[1743165821881,0.05803389,130.86,130.84,40.6205299]
[1743165822081,0.05803389,130.86,130.84,32.9750299]
[1743165822685,0.05803389,130.86,130.85,7.6452]
[1743165824187,0.05803389,130.86,130.85,23.10329573]
[1743165829386,40.8845,130.93,130.88,7.6431]
[1743165829594,7.6422,130.91,130.88,7.6431]
[1743165829785,8.0045,130.93,130.88,7.6431]
[1743165830281,7.6421,130.91,130.89,0.05625466]
[1743165830593,0.05215204,130.92,130.89,0.05625466]
[1743165831492,7.6423,130.9,130.89,0.05625466]
[1743165833693,7.642,130.91,130.89,7.69915466]
[1743165833897,0.05215204,130.92,130.89,15.51435039]
[1743165834092,0.05215204,130.92,130.91,15.45809573]
[1743165834397,7.6393,130.96,130.93,7.6403]
[1743165834597,7.6393,130.96,130.91,15.45809573]
[1743165834992,7.6393,130.96,130.89,4.0771]
[1743165834993,7.6393,130.96,130.94,9.87559146]
[1743165835401,7.69635832,130.96,130.94,9.92860583]
[1743165835601,0.05705832,130.96,130.94,9.92860583]
[1743165836402,7.69605832,130.96,130.94,9.92860583]
[1743165836802,0.05705832,130.96,130.94,0.05301437]
[1743165837001,7.6394,130.95,130.94,0.05301437]
[1743165837903,7.69605832,130.96,130.94,0.05301437]
[1743165838103,0.05705832,130.96,130.94,0.05301437]
[1743165838506,7.69615832,130.96,130.94,0.05301437]
[1743165838714,0.05705832,130.96,130.94,0.05301437]
[1743165839209,26.04102943,131.04,130.95,15.43431226]
[1743165839416,15.43431226,131.02,130.95,15.43431226]
[1743165839614,7.6379,130.98,130.95,15.43431226]
[1743165840018,7.6379,130.98,130.94,32.86]
[1743165840417,48.29431226,131.02,130.95,0.04832314]
[1743165841018,15.43431226,131.02,130.95,0.04832314]
[1743165841320,7.6384,130.97,130.95,0.04832314]
[1743165841517,32.84,131.01,130.95,0.04832314]
[1743165841717,7.6382,130.97,130.95,0.04832314]
[1743165841918,32.84,131.01,130.95,0.04832314]
[1743165843014,8.0544,131.03,130.97,7.6379]
[1743165843319,8.0544,131.03,130.95,48.27431226]
[1743165843522,40.8944,131.03,130.99,0.05076324]
[1743165843915,7.6355,131.02,130.99,0.05076324]
[1743165845120,40.8944,131.03,130.99,0.05076324]
[1743165845121,48.5293,131.03,130.99,0.05076324]
[1743165845323,32.84,131.05,130.99,15.4850755]
[1743165845523,32.84,131.05,130.99,15.43431226]
[1743165845820,50.56027409,131.07,131.01,0.05665292]
[1743165846018,83.40027409,131.07,131.01,0.05665292]
[1743165846319,50.56027409,131.07,131.03,7.6344]
[1743165846817,7.633,131.06,131.04,0.05653475]
[1743165847128,26.04102943,131.12,131.04,0.05653475]
[1743165847423,26.04102943,131.12,131.03,48.25431226]
[1743165847618,15.43431226,131.1,131.07,0.0583131]
[1743165847823,7.6318,131.08,131.07,0.0583131]
[1743165851114,15.43431226,131.12,131.07,0.0583131]
[1743165851325,32.8,131.11,131.07,0.0583131]
[1743165852425,7.6312,131.09,131.07,0.0583131]
[1743165853222,7.6309,131.1,131.07,0.0583131]
[1743165853414,8.2588,131.13,131.07,15.49262536]
[1743165853621,41.0588,131.13,131.07,15.49262536]
[1743165854122,41.0588,131.13,131.07,23.12492536]
[1743165854323,32.8,131.14,131.07,15.49262536]
[1743165854520,116.48519435,131.2,131.11,15.43431226]
[1743165854724,15.43431226,131.18,131.09,15.43431226]
[1743165854921,15.43431226,131.18,131.14,0.05651361]
[1743165855122,7.6277,131.15,131.14,1.361e-05]
[1743165855422,40.4277,131.15,131.14,1.361e-05]
[1743165858128,7.6277,131.15,131.14,1.361e-05]
[1743165862735,7.6327,131.07,131.04,15.43431226]
[1743165862930,7.6327,131.07,131.04,23.06801226]
[1743165863122,7.6327,131.07,131.04,15.43431226]
[1743165863435,7.6327,131.07,131.04,23.06811226]
[1743165863827,7.68474302,131.07,131.04,23.12565471]
[1743165864333,0.05204302,131.07,131.05,7.6335]
[1743165865428,0.05204302,131.07,131.04,23.12565471]
[1743165865634,7.6331,131.06,131.04,15.49185471]
[1743165866828,7.68464302,131.07,131.04,23.12565471]
[1743165867032,0.05204302,131.07,131.04,15.49185471]
[1743165867433,0.05204302,131.07,131.06,15.43431226]
[1743165867635,36.9369,131.13,131.06,15.43431226]
[1743165868134,36.9369,131.13,131.05,4.0154]
[1743165868633,7.6327,131.07,131.05,4.0154]
[1743165869035,7.6327,131.07,131.05,4.06582759]
[1743165869631,7.6329,131.06,131.05,0.05042759]
[1743165869834,32.74,131.09,131.01,274.82971226]
[1743165870033,32.74,131.09,131.04,0.05382101]
[1743165870638,7.6335,131.05,131.04,0.05382101]
[1743165871342,32.74,131.05,130.97,15.43431226]
[1743165871737,32.74,131.05,131.01,15.43431226]
[1743165872340,7.69231136,131.04,131.02,0.05115821]
[1743165872838,7.69231136,131.04,131.02,7.68635821]
[1743165873035,0.05791136,131.04,131.02,0.05115821]
[1743165873737,0.05791136,131.04,131.03,7.6347]
[1743165875344,0.05791136,131.04,131.02,7.68615821]
[1743165875539,0.05791136,131.04,131.02,0.05115821]
[1743165875735,0.05791136,131.04,131.03,15.43431226]
[1743165876046,0.05791136,131.04,131.03,23.06901226]
[1743165876234,7.6314,131.09,131.03,56.49171226]
[1743165876435,7.6314,131.09,131.06,7.6326]
[1743165876937,7.6308,131.1,131.05,15.43431226]
[1743165877345,32.74,131.13,131.06,0.05610487]
[1743165877535,7.6312,131.1,131.07,7.6322]
[1743165877936,7.6312,131.1,131.07,7.68974364]
[1743165878639,42.23817409,131.15,131.07,15.4918559]
[1743165878845,42.23817409,131.15,131.09,15.43431226]
[1743165879045,32.74,131.16,131.1,7.68266691]
[1743165879440,32.74,131.16,131.1,0.05236691]
[1743165879647,7.63,131.11,131.1,0.05236691]
[1743165880338,7.6297,131.12,131.1,0.05236691]
[1743165880542,7.6297,131.12,131.1,7.68286691]
[1743165880742,7.6297,131.12,131.1,0.05236691]
[1743165880945,7.63,131.11,131.1,0.05236691]
[1743165881845,7.6297,131.12,131.1,0.05236691]
[1743165882450,48.15431226,131.16,131.1,0.05236691]
[1743165882643,48.15431226,131.16,131.07,55.80661226]
[1743165882844,7.6298,131.12,131.07,55.80661226]
[1743165883038,7.6298,131.12,131.1,0.05147705]
[1743165883240,48.15431226,131.16,131.1,0.05147705]
[1743165883846,7.63,131.11,131.1,0.05147705]
[1743165894751,40.3297,131.12,131.1,0.05147705]
[1743165895056,32.7,131.15,131.11,9.8513356]
[1743165895258,7.6291,131.13,131.11,17.4811356]
[1743165895654,32.7,131.15,131.11,17.4811356]
[1743165895851,7.6288,131.14,131.11,17.4811356]
[1743165896150,32.7,131.15,131.11,17.4811356]
[1743165896357,9.8513356,131.16,131.11,9.8513356]
[1743165896561,63.52885711,131.18,131.12,9.8513356]
[1743165896752,49.49302151,131.18,131.14,9.8513356]
[1743165896951,7.6276,131.16,131.14,0.05785846]
[1743165897150,36.8008,131.18,131.14,0.05785846]
[1743165897554,7.6275,131.16,131.14,0.05785846]
[1743165898058,52.18586767,131.18,131.14,0.05785846]
[1743165898260,7.6277,131.15,131.14,0.05785846]
[1743165899154,7.6303,131.11,131.08,4.0711]
[1743165899654,7.6311,131.1,131.07,48.08506767]
[1743165899860,48.06506767,131.14,131.05,19.59656767]
[1743165900254,48.06506767,131.14,131.07,7.632]
[1743165900460,0.05339404,131.11,131.08,0.04995047]
[1743165900760,0.05339404,131.11,131.09,7.6306]
[1743165901056,0.05339404,131.11,131.08,0.04995047]
[1743165901458,7.6309,131.1,131.08,0.04995047]
[1743165901663,0.05339404,131.11,131.08,0.04995047]
[1743165901859,0.05339404,131.11,131.1,7.6306]
[1743165902556,0.05339404,131.11,131.08,32.72995047]
[1743165902759,0.05339404,131.11,131.08,0.04995047]
[1743165903859,7.6309,131.1,131.08,7.68145047]
[1743165904667,7.6312,131.09,131.08,0.04995047]
[1743165904863,0.05339404,131.11,131.08,0.04995047]
[1743165905363,7.68369404,131.11,131.09,7.6309]
[1743165906258,0.05339404,131.11,131.08,0.04995047]
[1743165907467,0.05339404,131.11,131.1,7.6306]
[1743165907966,0.05339404,131.11,131.08,0.04995047]
[1743165908154,7.68349404,131.11,131.09,7.6309]
[1743165908465,0.05339404,131.11,131.08,0.04995047]
[1743165908665,0.05339404,131.11,131.09,15.38506767]
[1743165908966,0.05339404,131.11,131.1,7.6306]
[1743165909861,32.66,131.17,131.09,52.10046767]
[1743165910067,4.1208,131.18,131.09,52.10046767]
[1743165910266,36.7808,131.18,131.11,15.38506767]
[1743165910468,4.1208,131.18,131.11,15.38506767]
[1743165910872,7.6268,131.17,131.14,7.6278]
[1743165911074,4.1208,131.18,131.14,7.6278]
[1743165911464,7.6267,131.17,131.14,7.6278]
[1743165911668,7.6267,131.17,131.15,7.6277]
[1743165912073,7.6272,131.16,131.13,15.44186017]
[1743165912266,7.6272,131.16,131.13,0.0567925]
[1743165912469,3.9486,131.19,131.13,15.44186017]
[1743165912669,7.6268,131.17,131.14,7.628]
[1743165913278,3.9486,131.19,131.13,0.0567925]
[1743165913777,15.38506767,131.18,131.13,0.0567925]
[1743165914076,7.6283,131.14,131.13,0.0567925]
[1743165914574,7.628,131.15,131.13,0.0567925]
[1743165915075,15.38506767,131.18,131.13,0.0567925]
[1743165915877,7.6273,131.16,131.13,7.6851925]
[1743165916276,7.6278,131.15,131.13,7.6851925]
[1743165916969,7.6283,131.14,131.13,0.0567925]
[1743165918079,7.6303,131.11,131.09,7.6308]
[1743165918277,4.0428,131.15,131.1,7.6306]
[1743165918478,7.6292,131.13,131.1,7.6306]
[1743165918679,4.0428,131.15,131.08,15.38506767]
[1743165919179,0.05019365,131.13,131.1,0.05230811]
[1743165920070,0.05019365,131.13,131.12,7.6295]
[1743165921676,7.67949365,131.13,131.1,15.43737578]
[1743165921878,0.05019365,131.13,131.1,0.05230811]
[1743165922381,7.6295,131.12,131.1,0.05230811]
[1743165922580,0.05019365,131.13,131.1,0.05230811]
[1743165923283,7.63,131.11,131.1,0.05230811]
[1743165925677,48.00506767,131.12,131.06,7.6329]
[1743165925982,48.00506767,131.12,131.04,15.38506767]
[1743165926483,15.38506767,131.08,131.0,15.38506767]
[1743165926677,32.62,131.07,131.0,15.38506767]
[1743165926983,0.04888554,131.05,131.03,7.69050326]
[1743165927482,0.04888554,131.05,131.04,7.6341]
[1743165927683,0.04888554,131.05,131.03,0.05600326]
[1743165928279,0.04888554,131.05,131.03,7.69050326]